{"text_format":"1","workbook":"xlsx","n_sheets":4,"sheets":["CW3A Application","Disbursement's (optional)","LAA use only","Sheet1"],"not_rendered":{"charts":0,"images":2,"macros":1,"external_links":0,"defined_names":10,"comments":0,"pivot_tables":0},"unopened":[],"bounds":{"document_bytes":16777216,"sheet_cells":100000,"rows_first":2000,"rows_last":500,"rows_between":2000,"halvings":0,"cell_chars":16384,"cell_head_chars":4096},"cells_cut":0,"cells_raw":0,"read":"whole","date_system":"1900"}

{"sheet":"CW3A Application","index":0,"n_rows":701,"n_cols":13,"rows_kept":701,"cut":false,"hidden":false,"merged":[[7,1,7,3],[6,1,6,3],[1,11,1,18],[10,3,10,10],[11,3,11,10],[12,3,12,10],[13,3,13,10],[2,3,2,10],[46,1,46,10],[28,12,28,13],[14,3,14,10],[15,3,15,10],[5,0,5,10],[20,0,20,1],[21,0,21,1],[22,3,22,10],[23,3,23,10],[28,0,28,8],[30,5,30,6],[31,5,31,6],[42,2,42,3],[42,6,42,7],[42,8,42,10],[43,6,43,10],[11,0,11,1],[19,0,19,1],[12,0,12,1],[13,0,13,1],[14,0,14,1],[15,0,15,1],[17,0,17,1],[41,8,41,10],[41,2,41,3],[41,6,41,7],[31,0,31,4],[18,0,18,1],[30,12,30,13],[19,3,19,10],[20,3,20,10],[21,3,21,10],[23,0,23,1],[24,3,24,10],[25,3,25,10],[24,0,24,1],[25,0,25,1],[22,0,22,1],[30,0,30,4],[65,1,65,10],[70,5,70,7],[63,1,63,10],[35,0,35,10],[34,0,34,10],[36,4,36,10],[36,0,36,3],[52,1,52,10],[58,1,58,10],[39,1,39,10],[40,1,40,10],[45,1,45,10],[67,5,67,7],[68,5,68,7],[69,5,69,7],[69,1,69,4],[70,1,70,4],[59,6,59,7],[59,8,59,10],[61,6,61,10],[60,0,60,1],[9,0,9,1],[10,0,10,1],[18,3,18,10],[91,4,91,5],[95,1,95,10],[97,3,97,6],[99,3,99,6],[98,3,98,6],[97,8,97,10],[74,5,74,9],[75,3,75,4],[99,8,99,10],[83,8,83,9],[84,8,84,9],[85,8,85,9],[90,4,90,5],[89,4,89,5],[79,1,79,4],[79,5,79,10],[77,1,77,10],[78,1,78,4],[78,5,78,10],[74,3,74,4],[80,1,80,4],[80,5,80,10],[53,0,53,1],[49,6,49,10],[47,2,47,3],[47,6,47,7],[47,8,47,10],[48,2,48,3],[60,2,60,3],[60,6,60,7],[60,8,60,10],[48,6,48,7],[53,2,53,3],[53,6,53,7],[53,8,53,10],[48,8,48,10],[54,0,54,1],[54,2,54,3],[54,6,54,7],[54,8,54,10],[67,1,67,4],[68,1,68,4],[55,6,55,10],[59,0,59,1],[59,2,59,3]]}
[null,null,null,null,null,null,null,null,null,null,"CW3A"]
[null,null,null,null,null,null,null,null,null,null,null,"LAA TOP TIPS COLUMN"]
[null,null,null,"Application for extension of Upper Costs Limit "]
[]
[]
["This form should be used when seeking an extension for hourly rates matters opened under paragraph 8.77 (a) of the 2013 Standard Civil Contract, paragraph 8.83 (a) of the 2010 Standard Civil Contract or under paragraph 11.2 (a) and (c) of the Unified Contract. This spreadsheet should be submitted electronically via e-mail to the address below in advance of the requested work being commenced."]
[null," Please send this application to:"]
[null,"CW3Online@legalaid.gsi.gov.uk"]
[]
["Provider Details"]
["Name of Provider"]
["Account Number"]
["Provider Address"]
["DX"]
["Telephone Number"]
["e-mail"]
[]
["Client Details"]
["Clients Forename"]
["Client's Surname"]
["Home Office UCN"]
["Client's D.O.B"]
["LH Start Date:"]
["CLR Start Date"]
["Client's Full Postcode"]
["Client's Nationality"]
[]
["Please complete below and endorse which of the following your application relates to:"]
["All costs should exclude VAT"]
[]
["Category of work",null,null,null,null,"Costs Incurred ",null,"Current Limit","New Limit Requested","Overall Increase"]
[null,null,null,null,null,null,null,null,null,{"$f":"I32-H32","v":0}]
[]
[1," Summary of Case:"]
["Briefly provide a summary of the case and highlight the main issues. Provide also provide an estimate of the prospects of success from the drop down list in the box below (cell E43) and explain how the case meets the sufficient benefit or CLR merits test."]
[]
["Prospects of Success:"]
[]
[2," Work carried out to date:"]
[null,"Give details of the work you have carried out to date, including all Counsel costs to date:\n"]
[null,"Provide in chronological order the main steps of the case completed together with the time and  costs spent in undertaking each step"]
["Date","Category","Sub Category",null,"Rate","Hours","Total",null,"Comments",null,null,null,2]
[]
[null,null,null,null,null,"Total:",{"$f":"GetTotals(M42,M44)","v":0},null,null,null,null,null,"2E"]
[]
[3," Disbursements incurred to date:"]
[null,"Provide details of all disbursements (use Section 2 for Counsel fees)  (Please list by type of disbursement, i.e. interpreter, medical/expert report, travel). If you prefer you can either complete the Disbursement's sheet contained within this spreadsheet or attach a scanned copy of your office ledger to your e-mail.\n"]
["Date","Category","Sub Category",null,"Rate","Hours","Total",null,"Comments",null,null,null,3]
[]
[null,null,null,null,null,"Total:",{"$f":"GetTotals(M48,M50)","v":0},null,null,null,null,null,"3E"]
[]
[4,"Details of further work required"]
[]
["Category",null,"Sub Category",null,"Rate","Hours","Total",null,"Comments",null,null,null,4]
[]
[null,null,null,null,null,"Total:",{"$f":"GetTotals(M54,M56)","v":0},null,null,null,null,null,"4E"]
[]
[5," Requested disbursements:"]
[null,"Give details of your work for which further legal aid is required.\nPlease note legal help & CLR profit costs limits and the disbursement limits are exclusive of VAT"]
["Category",null,"Sub Category",null,"Rate","Hours","Total",null,"Comments",null,null,null,5]
[]
[null,null,null,null,null,"Total:",{"$f":"GetTotals(M60,M62)","v":0},null,null,null,null,null,"5E"]
[]
[null,"Please complete the following sections where applicable:"]
[]
[null,"Experts Reports                                                                      (all costs should be Exclusive of VAT)"]
[]
[null,"Type of Report",null,null,null,"Name of Expert",null,null,"Hourly rate to be charged","Number of Hours","Total Requested"]
[null,null,null,null,null,null,null,null,null,null,{"$f":"I69*J69","v":0}]
[]
[]
[]
[null,"Fixed Fee Services "]
[null,"If using either the  Helen Bamber Foundation or The Medical Foundation (Freedom from Torture) please simply quote the total cost below"]
[null,null,null,"Service to be used "]
[null,null,null,"Total Costs requested "]
[]
[null,"Interpreters and Translations                                                   (all costs should be Exclusive of VAT)"]
[null,"Language"]
[null,"Region"]
[null,"Number of Interpreter attendances"]
[]
[null,null,null,null,null,null,null,"Hrs Requested"]
[null,"Hourly rate for attendance",null,null,null,null,null,null,"Total for attendance ",null,{"$f":"F84*H84","v":0}]
[null,"Hourly rate for travel",null,null,null,null,null,null,"Total for travel time ",null,{"$f":"F85*H85","v":0}]
[null,"Hourly rate for waiting",null,null,null,null,null,null,"Total for waiting ",null,{"$f":"F86*H86","v":0}]
[null,null,null,null,null,null,null,null,null,"Travel Costs"]
[null,null,null,null,null,null,null,null,null,"Total Requested",{"$f":"SUM(K84:K87)","v":0}]
[]
[null,"Translation",null,null,"Charging Rates",null,null,null,"Items"]
[null,"Rate per 1000 words",null,null,null,null,null,"Number of words",null,"Cost (words)",{"$f":"(I91/1000)*E91","v":0}]
[null,"Rate per A4 page",null,null,null,null,null,"No A4 Pages",null,"Cost (pages)",{"$f":"E92*I92","v":0}]
[]
[null,null,null,null,null,null,null,null,null,"Total",{"$f":"SUM(K91:K92)","v":0}]
[]
[null,"I confirm that the details on this form are true to the best of my information and belief and that the work on this matter has been carried out in accordance with the contract specification and guidance.\n"]
[]
[null,"Signed",null,null,null,null,null,"PRINT NAME"]
[null,null,null,"Accredited Advisor"]
[null,null,null,"Digital Signature is sufficient",null,null,null,"DATE SIGNED"]
[]
[]
[]
[]
[]
[]
[]
[]
[]
[]
[]
[]
[]
[]
[]
[]
[]
[]
[]
[]
[]
[]
[]
[]
[]
[]
[]
[]
[]
[]
[]
[]
[]
[]
[]
[]
[]
[]
[]
[]
[]
[]
[]
[]
[]
[]
[]
[]
[]
[]
[]
[]
[]
[]
[]
[]
[]
[]
[]
[]
[]
[]
[]
[]
[]
[]
[]
[]
[]
[]
[]
[]
[]
[]
[]
[]
[]
[]
[]
[]
[]
[]
[]
[]
[]
[]
[]
[]
[]
[]
[]
[]
[]
[]
[]
[]
[]
[]
[]
[]
[]
[]
[]
[]
[]
[]
[]
[]
[]
[]
[]
[]
[]
[]
[]
[]
[]
[]
[]
[]
[]
[]
[]
[]
[]
[]
[]
[]
[]
[]
[]
[]
[]
[]
[]
[]
[]
[]
[]
[]
[]
[]
[]
[]
[]
[]
[]
[]
[]
[]
[]
[]
[]
[]
[]
[]
[]
[]
[]
[]
[]
[]
[]
[]
[]
[]
[]
[]
[]
[]
[]
[]
[]
[]
[]
[]
[]
[]
[]
[]
[]
[]
[]
[]
[]
[]
[]
[]
[]
[]
[]
[]
[]
[]
[]
[]
[]
[]
[]
[]
[]
[]
[]
[]
[]
[]
[]
[]
[]
[]
[]
[]
[]
[]
[]
[]
[]
[]
[]
[]
[]
[]
[]
[]
[]
[]
[]
[]
[]
[]
[]
[]
[]
[]
[]
[]
[]
[]
[]
[]
[]
[]
[]
[]
[]
[]
[]
[]
[]
[]
[]
[]
[]
[]
[]
[]
[]
[]
[]
[]
[]
[]
[]
[]
[]
[]
[]
[]
[]
[]
[]
[]
[]
[]
[]
[]
[]
[]
[]
[]
[]
[]
[]
[]
[]
[]
[]
[]
[]
[]
[]
[]
[]
[]
[]
[]
[]
[]
[]
[]
[]
[]
[]
[]
[]
[]
[]
[]
[]
[]
[]
[]
[]
[]
[]
[]
[]
[]
[]
[]
[]
[]
[]
[]
[]
[]
[]
[]
[]
[]
[]
[]
[]
[]
[]
[]
[]
[]
[]
[]
[]
[]
[]
[]
[]
[]
[]
[]
[]
[]
[]
[]
[]
[]
[]
[]
[]
[]
[]
[]
[]
[]
[]
[]
[]
[]
[]
[]
[]
[]
[]
[]
[]
[]
[]
[]
[]
[]
[]
[]
[]
[]
[]
[]
[]
[]
[]
[]
[]
[]
[]
[]
[]
[]
[]
[]
[]
[]
[]
[]
[]
[]
[]
[]
[]
[]
[]
[null,"Nationality",null,null,null,"Category"]
[null,"Afghan",null,null,null,"Legal Help"]
[null,"Albanian",null,null,null,"Legal Help Disbursement"]
[null,"Algerian",null,null,null,"First Tier Tribunal - CLR"]
[null,"American"]
[null,"Andorran"]
[null,"Angolan"]
[null,"Antiguans"]
[null,"Argentinean"]
[null,"Armenian"]
[null,"Australian"]
[null,"Austrian"]
[null,"Azerbaijani"]
[null,"Bahamian"]
[null,"Bahraini"]
[null,"Bangladeshi"]
[null,"Barbadian"]
[null,"Barbudans"]
[null,"Batswana"]
[null,"Belarusian"]
[null,"Belgian"]
[null,"Belizean"]
[null,"Beninese"]
[null,"Bhutanese"]
[null,"Bolivian"]
[null,"Bosnian"]
[null,"Brazilian"]
[null,"British"]
[null,"Bruneian"]
[null,"Bulgarian"]
[null,"Burkinabe"]
[null,"Burmese"]
[null,"Burundian"]
[null,"Cambodian"]
[null,"Cameroonian"]
[null,"Canadian"]
[null,"Cape Verdean"]
[null,"Central African"]
[null,"Chadian"]
[null,"Chilean"]
[null,"Chinese"]
[null,"Colombian"]
[null,"Comoran"]
[null,"Congolese"]
[null,"Costa Rican"]
[null,"Croatian"]
[null,"Cuban"]
[null,"Cypriot"]
[null,"Czech"]
[null,"Danish"]
[null,"Djibouti"]
[null,"Dominican"]
[null,"Dutch"]
[null,"East Timorese"]
[null,"Ecuadorean"]
[null,"Egyptian"]
[null,"Emirian"]
[null,"Equatorial Guinean"]
[null,"Eritrean"]
[null,"Estonian"]
[null,"Ethiopian"]
[null,"Fijian"]
[null,"Filipino"]
[null,"Finnish"]
[null,"French"]
[null,"Gabonese"]
[null,"Gambian"]
[null,"Georgian"]
[null,"German"]
[null,"Ghanaian"]
[null,"Greek"]
[null,"Grenadian"]
[null,"Guatemalan"]
[null,"Guinea-Bissauan"]
[null,"Guinean"]
[null,"Guyanese"]
[null,"Haitian"]
[null,"Herzegovinian"]
[null,"Honduran"]
[null,"Hungarian"]
[null,"I-Kiribati"]
[null,"Icelander"]
[null,"Indian"]
[null,"Indonesian"]
[null,"Iranian"]
[null,"Iraqi"]
[null,"Irish"]
[null,"Israeli"]
[null,"Italian"]
[null,"Ivorian"]
[null,"Jamaican"]
[null,"Japanese"]
[null,"Jordanian"]
[null,"Kazakhstani"]
[null,"Kenyan"]
[null,"Kittian and Nevisian"]
[null,"Kuwaiti"]
[null,"Kyrgyz"]
[null,"Laotian"]
[null,"Latvian"]
[null,"Lebanese"]
[null,"Liberian"]
[null,"Libyan"]
[null,"Liechtensteiner"]
[null,"Lithuanian"]
[null,"Luxembourger"]
[null,"Macedonian"]
[null,"Malagasy"]
[null,"Malawian"]
[null,"Malaysian"]
[null,"Maldivan"]
[null,"Malian"]
[null,"Maltese"]
[null,"Marshallese"]
[null,"Mauritanian"]
[null,"Mauritian"]
[null,"Mexican"]
[null,"Micronesian"]
[null,"Moldovan"]
[null,"Monacan"]
[null,"Mongolian"]
[null,"Moroccan"]
[null,"Mosotho"]
[null,"Motswana"]
[null,"Mozambican"]
[null,"Namibian"]
[null,"Nauruan"]
[null,"Nepalese"]
[null,"New Zealander"]
[null,"Nicaraguan"]
[null,"Nigerian"]
[null,"Nigerien"]
[null,"North Korean"]
[null,"Northern Irish"]
[null,"Norwegian"]
[null,"Omani"]
[null,"Pakistani"]
[null,"Palauan"]
[null,"Panamanian"]
[null,"Papua New Guinean"]
[null,"Paraguayan"]
[null,"Peruvian"]
[null,"Polish"]
[null,"Portuguese"]
[null,"Qatari"]
[null,"Romanian"]
[null,"Russian"]
[null,"Rwandan"]
[null,"Saint Lucian"]
[null,"Salvadoran"]
[null,"Samoan"]
[null,"San Marinese"]
[null,"Sao Tomean"]
[null,"Saudi"]
[null,"Scottish"]
[null,"Senegalese"]
[null,"Serbian"]
[null,"Seychellois"]
[null,"Sierra Leonean"]
[null,"Singaporean"]
[null,"Slovakian"]
[null,"Slovenian"]
[null,"Solomon Islander"]
[null,"Somali"]
[null,"South African"]
[null,"South Korean"]
[null,"Spanish"]
[null,"Sri Lankan"]
[null,"Sudanese"]
[null,"Surinamer"]
[null,"Swazi"]
[null,"Swedish"]
[null,"Swiss"]
[null,"Syrian"]
[null,"Taiwanese"]
[null,"Tajik"]
[null,"Tanzanian"]
[null,"Thai"]
[null,"Togolese"]
[null,"Tongan"]
[null,"Trinidadian or Tobagonian"]
[null,"Tunisian"]
[null,"Turkish"]
[null,"Tuvaluan"]
[null,"Ugandan"]
[null,"Ukrainian"]
[null,"Uruguayan"]
[null,"Uzbekistani"]
[null,"Venezuelan"]
[null,"Vietnamese"]
[null,"Welsh"]
[null,"Yemenite"]
[null,"Zambian"]
[null,"Zimbabwean"]

{"sheet":"Disbursement's (optional)","index":1,"n_rows":5,"n_cols":10,"rows_kept":5,"cut":false,"hidden":false,"merged":[]}
["Completion in this format is optional"]
["You can either complete in narrative format on the application form itself or provide a copy of your Ledger if you prefer"]
["Disbursements incurred",null,null,"Please feel free to add your own headings or change any of the existing ones"]
[]
["Date","Type","Description - Expert Type","Reference","Amount Debit","Amount Credit","Balance","Payee","Billed / Unbilled","VAT"]

{"sheet":"LAA use only","index":2,"n_rows":2,"n_cols":22,"rows_kept":2,"cut":false,"hidden":false,"merged":[]}
["Matter Type","Category","Matter Description","HO UCN","First Name","Surname","DOB","Nationality","Postcode","Account Number","Name","Legal Help Start Date","CLR Start Date","Requested","Allowed","Claimed to date","Previous PA limit","Caseworker","Decision","Effective Date","Decision Comments","Response time"]
[{"$f":"'CW3A Application'!K1","v":"CW3A"},{"$f":"'CW3A Application'!A32","v":0},{"$f":"'CW3A Application'!D3","v":"Application for extension of Upper Costs Limit "},{"$f":"'CW3A Application'!D21","v":0},{"$f":"'CW3A Application'!D19","v":0},{"$f":"'CW3A Application'!D20","v":0},{"$f":"'CW3A Application'!D22","v":"00:00:00"},{"$f":"'CW3A Application'!D26","v":0},{"$f":"'CW3A Application'!D25","v":0},{"$f":"'CW3A Application'!D12","v":0},{"$f":"'CW3A Application'!D11","v":0},{"$f":"IF('CW3A Application'!D23>0,'CW3A Application'!D23,\"\")","v":""},{"$f":"IF('CW3A Application'!D24>0,'CW3A Application'!D24,\"\")","v":""},{"$f":"'CW3A Application'!I32","v":0},null,{"$f":"'CW3A Application'!F32","v":0},{"$f":"'CW3A Application'!H32","v":0},null,null,{"$f":"'CW3A Application'!I100","v":"00:00:00"}]

{"sheet":"Sheet1","index":3,"n_rows":28,"n_cols":7,"rows_kept":28,"cut":false,"hidden":false,"merged":[]}
[]
[]
[null,"Ranges"]
[]
[]
[null,"Profit Costs","Preparation","Attendance","Advocacy","Routine calls","RoutineLetters"]
[null,"Preparation","Prepare representations","Advice on progress"]
[null,"Attendance","Draft brief","Advice on decision"]
[null,"Advocacy","Compile bundle","Taking instructions - general"]
[null,"Routine Calls","Peruse documents","Taking instructions - statement"]
[null,"Routine Letters","Draft statement","Pre-interview"]
[null,null,"Draft letter","Post-interview"]
[null,null,"Consider RFRL/determination","Liaise with support services"]
[null,null,"Draft application","Liaise with expert"]
[null,null,"Draft LBA","Liaise with counsel"]
[null,null,"Country Research","Other (Specify in comments)"]
[null,null,"Prepare for hearing"]
[null,null,"Assess merits"]
[null,null,"Other (Specify in comments)"]
[]
[null,null,null,null,null,"Experts"]
[null,"Disbursements","Travel costs",null,null,"Medico-Legal"]
[null,"Interpreter","Fares",null,null,"Country"]
[null,"Translation","Mileage",null,null,"Scarring"]
[null,"Travel Costs",null,null,null,"Authentication"]
[null,"Subject Access Request",null,null,null,"Psychiatric"]
[null,"GP Records",null,null,null,"Psychological"]
[null,"DNA Testing",null,null,null,"Independent Social Worker"]